fUSD/lending_fUSD_20241223
["ID","MTS","AMOUNT","RATE_DAILY","PERIOD"]
[346435915,1734976247108,-1318.89,0.0001773,2]
[346435916,1734976247118,-1124.02,0.0001773,2]
[346435917,1734976247128,-500.0,0.0001773,2]
[346435918,1734976247142,-500.0,0.0001773,2]
[346435919,1734976247151,-500.0,0.0001773,2]
[346435920,1734976247161,-594.58,0.0001773,2]
[346435921,1734976247171,-514.71,0.0001773,2]
[346435922,1734976247180,-500.0,0.0001773,2]
[346435923,1734976247193,-587.41,0.0001773,2]
[346435924,1734976247203,-500.0,0.0001773,2]
[346435925,1734976247213,-500.0,0.0001773,2]
[346435926,1734976247225,-500.0,0.0001773,2]
[346435927,1734976247235,-507.21,0.0001773,2]
[346435928,1734976247244,-1087.06,0.0001773,2]
[346435929,1734976247254,-500.0,0.0001773,2]
[346435930,1734976247264,-500.0,0.0001773,2]
[346435931,1734976247274,-500.0,0.0001773,2]
[346435932,1734976247284,-2627.33,0.0001773,2]
[346435933,1734976247295,-1265.05,0.0001773,2]
[346435934,1734976247304,-556.69,0.0001773,2]
[346435935,1734976247314,-500.0,0.0001773,2]
[346435936,1734976247324,-1399.19,0.0001773,2]
[346435937,1734976247334,-1619.07,0.0001773,2]
[346435938,1734976247344,-500.0,0.0001773,2]
[346435939,1734976247354,-500.0,0.0001773,2]
[346435940,1734976247364,-16046.65,0.0001773,2]
[346435941,1734976247374,-500.0,0.0001773,2]
[346435942,1734976247502,-1307.19,0.0001773,2]
[346435943,1734976247512,-4124.3,0.0001773,2]
[346435944,1734976247521,-1406.69,0.0001773,2]
[346435945,1734976247530,-500.0,0.0001773,2]
[346435946,1734976247540,-701.63,0.0001773,2]
[346435947,1734976247549,-1394.24,0.0001773,2]
[346435948,1734976247558,-792.86,0.0001773,2]
[346435949,1734976247568,-500.0,0.0001773,2]
[346435950,1734976247577,-509.18202464,0.0001773,2]
[346435951,1734976247587,-1890.35,0.0001773,2]
[346435952,1734976247596,-500.0,0.0001773,2]
[346435953,1734976247605,-500.0,0.0001773,2]
[346435954,1734976247615,-554.92,0.0001773,2]
[346435955,1734976247624,-500.0,0.0001773,2]
[346435956,1734976247633,-500.0,0.0001773,2]
[346435957,1734976247642,-500.0,0.0001773,2]
[346435958,1734976247652,-8089.32,0.0001773,2]
[346435959,1734976247660,-500.0,0.0001773,2]
[346435960,1734976247669,-500.0,0.0001773,2]
[346435961,1734976247678,-883.35,0.0001773,2]
[346435962,1734976247690,-914.35,0.0001773,2]
[346435963,1734976247700,-787.22,0.0001773,2]
[346435964,1734976247709,-500.0,0.0001773,2]
[346435965,1734976247719,-500.0,0.0001773,2]
[346435966,1734976247728,-4570.23,0.0001773,2]
[346435967,1734976247737,-826.39,0.0001773,2]
[346435968,1734976247746,-500.0,0.0001773,2]
[346435969,1734976247755,-500.0,0.0001773,2]
[346435970,1734976247764,-2703.26,0.0001773,2]
[346435971,1734976247773,-1464.23,0.0001773,2]
[346435972,1734976247782,-2532.79,0.0001773,2]
[346435973,1734976247792,-1162.27,0.0001773,2]
[346435974,1734976247801,-503.58819522,0.0001773,2]
[346435975,1734976247810,-500.0,0.0001773,2]
[346435976,1734976247820,-500.0,0.0001773,2]
[346435977,1734976247829,-6232.45,0.0001773,2]
[346435978,1734976247838,-757.86,0.0001773,2]
[346435979,1734976247847,-4985.91,0.0001773,2]
[346435980,1734976247856,-500.0,0.0001773,2]
[346435981,1734976247865,-500.0,0.0001773,2]
[346435982,1734976247875,-764.95,0.0001773,2]
[346435983,1734976247884,-500.0,0.0001773,2]
[346435984,1734976247894,-3809.88,0.0001773,2]
[346435985,1734976247903,-295.03047548,0.0001773,2]
[346435986,1734976247912,-651.3,0.0001773,2]
[346435987,1734976247922,-500.0,0.0001773,2]
[346435988,1734976247932,-500.0,0.0001773,2]
[346435989,1734976247944,-8445.75,0.0001773,2]
[346435990,1734976247953,-500.0,0.0001773,2]
[346435991,1734976247962,-500.0,0.0001773,2]
[346435992,1734976247972,-16806.36,0.0001773,2]
[346435993,1734976247982,-500.0,0.0001773,2]
[346435994,1734976247992,-682.86,0.0001773,2]
[346435995,1734976248003,-500.0,0.0001773,2]
[346435996,1734976248013,-623.61,0.0001773,2]
[346435997,1734976248023,-820.81,0.0001773,2]
[346435998,1734976248034,-864.14,0.0001773,2]
[346435999,1734976248044,-500.0,0.0001773,2]
[346436000,1734976248055,-500.0,0.0001773,2]
[346436001,1734976248064,-698.39,0.0001773,2]
[346436002,1734976248074,-23345.01,0.0001773,2]
[346436003,1734976248085,-666.33,0.0001773,2]
[346436004,1734976248094,-3637.71,0.0001773,2]
[346436005,1734976248104,-1677.82,0.0001773,2]
[346436006,1734976248114,-368.9574176,0.0001773,2]
[346436007,1734976248132,-500.0,0.0001773,2]
[346436008,1734976248149,-447.21501162,0.0001773,2]
[346436009,1734976248161,-500.0,0.0001773,2]
[346436010,1734976248172,-5862.02,0.0001773,2]
[346436011,1734976248192,-510.49,0.0001773,2]
[346436012,1734976248209,-500.0,0.0001773,2]
[346436013,1734976248220,-2689.8,0.0001773,2]
[346436014,1734976248232,-4733.77,0.0001773,2]
[346436015,1734976248243,-500.0,0.0001773,2]
[346436016,1734976248253,-514.97,0.0001773,2]
[346436017,1734976248263,-500.0,0.0001773,2]
[346436018,1734976248273,-500.0,0.0001773,2]
[346436019,1734976248282,-782.33,0.0001773,2]
[346436020,1734976248292,-4453.49,0.0001773,2]
[346436021,1734976248302,-4040.54,0.0001773,2]
[346436022,1734976248311,-500.0,0.0001773,2]
[346436023,1734976248322,-500.0,0.0001773,2]
[346436024,1734976248331,-500.0,0.0001773,2]
[346436025,1734976248341,-5973.25,0.0001773,2]
[346436026,1734976248350,-500.0,0.0001773,2]
[346436027,1734976248360,-925.52,0.0001773,2]
[346436028,1734976248370,-5119.36,0.0001773,2]
[346436029,1734976248379,-937.17,0.0001773,2]
[346436030,1734976248389,-10559.14,0.0001773,2]
[346436031,1734976248398,-500.0,0.0001773,2]
[346436032,1734976248409,-15244.16,0.0001773,2]
[346436033,1734976248419,-500.0,0.0001773,2]
[346436034,1734976248429,-746.69,0.0001773,2]
[346436035,1734976248441,-5986.27,0.0001773,2]
[346436036,1734976248451,-1795.76,0.0001773,2]
[346436037,1734976248461,-1518.05,0.0001773,2]
[346436038,1734976248471,-500.0,0.0001773,2]
[346436039,1734976248480,-500.0,0.0001773,2]
[346436040,1734976248491,-17616.5,0.0001773,2]
[346436041,1734976248501,-747.64,0.0001773,2]
[346436042,1734976248511,-164.83792681,0.00017732,2]
[346436043,1734976248522,-500.0,0.00017733,2]
[346436044,1734976248532,-500.0,0.00017733,2]
[346436045,1734976248543,-263.41994211,0.00017736,2]
[346436046,1734976248553,-17388.13929101,0.00017738,2]
[346436047,1734976248563,-150.0,0.00017797,2]
[346436048,1734976248574,-150.0,0.00017797,2]
[346436049,1734976248584,-3668.32,0.00017803,2]
[346436050,1734976248595,-3105.64,0.00017803,2]
[346436051,1734976248605,-6139.9,0.00017803,2]
[346436052,1734976248614,-572.27,0.00017803,2]
[346436053,1734976248625,-4877.36,0.00017803,2]
[346436054,1734976248636,-6216.25,0.00017803,2]
[346436055,1734976248647,-9719.76,0.00017803,2]
[346436056,1734976248658,-5256.15,0.00017803,2]
[346436057,1734976248669,-4758.19,0.00017803,2]
[346436058,1734976248679,-31030.48,0.00017803,2]
[346436059,1734976248690,-1368.67,0.00017803,2]
[346436060,1734976248700,-3970.81,0.00017803,2]
[346436061,1734976248711,-500.0,0.00017803,2]
[346436062,1734976248721,-500.0,0.00017803,2]
[346436063,1734976248731,-700.0,0.00017808,2]
[346436064,1734976248740,-150.0,0.00017812,2]
[346436065,1734976248750,-500.0,0.00017817,2]
[346436066,1734976248760,-403.76240817,0.00017817,2]
[346436067,1734976248770,-500.0,0.00017817,2]
[346436068,1734976248780,-500.0,0.00017817,2]
[346436069,1734976248791,-825.9,0.00017817,2]
[346436070,1734976248801,-1517.67,0.00017817,2]
[346436071,1734976248811,-564.66,0.00017817,2]
[346436072,1734976248821,-516.53,0.00017817,2]
[346436073,1734976248830,-500.0,0.00017817,2]
[346436074,1734976248840,-500.0,0.00017817,2]
[346436075,1734976248850,-500.0,0.00017817,2]
[346436076,1734976248859,-503.86,0.00017817,2]
[346436077,1734976248869,-414.36562904,0.00017817,2]
[346436078,1734976248879,-2668.62,0.00017817,2]
[346436079,1734976248888,-500.0,0.00017817,2]
[346436080,1734976248899,-501.42933698,0.00017817,2]
[346436081,1734976248909,-500.0,0.00017817,2]
[346436082,1734976248920,-862.98,0.00017817,2]
[346436083,1734976248930,-625.437085,0.00017817,2]
[346436084,1734976248943,-503.52627372,0.00017817,2]
[346436085,1734976248954,-500.0,0.00017817,2]
[346436086,1734976248965,-500.0,0.00017817,2]
[346436087,1734976248976,-505.41,0.00017817,2]
[346436088,1734976248986,-500.0,0.00017817,2]
[346436089,1734976248996,-539.27,0.00017817,2]
[346436090,1734976249007,-500.0,0.00017817,2]
[346436091,1734976249017,-500.0,0.00017817,2]
[346436092,1734976249028,-2534.69,0.00017817,2]
[346436093,1734976249039,-500.0,0.00017817,2]
[346436094,1734976249048,-960.48,0.00017817,2]
[346436095,1734976249058,-2575.85,0.00017817,2]
[346436096,1734976249068,-749.68,0.00017817,2]
[346436097,1734976249078,-500.0,0.00017817,2]
[346436098,1734976249088,-1282.79,0.00017817,2]
[346436099,1734976249098,-1346.35,0.00017817,2]
[346436100,1734976249108,-500.0,0.00017817,2]
[346436101,1734976249118,-658.92,0.00017817,2]
[346436102,1734976249132,-500.0,0.00017817,2]
[346436103,1734976249141,-500.0,0.00017817,2]
[346436104,1734976249150,-500.0,0.00017817,2]
[346436105,1734976249160,-847.62,0.00017817,2]
[346436106,1734976249170,-500.0,0.00017817,2]
[346436107,1734976249181,-500.0,0.00017817,2]
[346436108,1734976249196,-5126.11,0.00017817,2]
[346436109,1734976249206,-500.0,0.00017817,2]
[346436110,1734976249217,-7375.2,0.00017817,2]
[346436111,1734976249227,-1468.03,0.00017817,2]
[346436112,1734976249237,-508.77619288,0.00017817,2]
[346436113,1734976249248,-500.76226297,0.00017817,2]
[346436114,1734976249259,-7024.69,0.00017817,2]
[346436115,1734976249269,-27031.36,0.00017817,2]
[346436116,1734976249279,-2789.74,0.00017817,2]
[346436117,1734976249288,-500.0,0.00017817,2]
[346436118,1734976249298,-884.61,0.00017817,2]
[346436119,1734976249309,-647.9,0.00017817,2]
[346436120,1734976249320,-500.0,0.00017817,2]
[346436121,1734976249330,-5982.48,0.00017817,2]
[346436122,1734976249340,-498.0321089,0.00017817,2]
[346436123,1734976249350,-500.0,0.00017817,2]
[346436124,1734976249359,-500.0,0.00017817,2]
[346436125,1734976249370,-500.0,0.00017817,2]
[346436126,1734976249380,-500.0,0.00017817,2]
[346436127,1734976249391,-620.34,0.00017817,2]
[346436128,1734976249401,-500.0,0.00017817,2]
[346436129,1734976249411,-1001.91,0.00017817,2]
[346436130,1734976249421,-579.06,0.00017817,2]
[346436131,1734976249430,-500.0,0.00017817,2]
[346436132,1734976249443,-641.11,0.00017817,2]
[346436133,1734976249453,-4704.67,0.00017817,2]
[346436134,1734976249462,-3469.32,0.00017817,2]
[346436135,1734976249473,-3969.53,0.00017817,2]
[346436136,1734976249482,-1456.66,0.00017817,2]
[346436137,1734976249492,-2066.28,0.00017817,2]
[346436138,1734976249502,-500.0,0.00017817,2]
[346436139,1734976249512,-4192.9,0.00017817,2]
[346436140,1734976249521,-1435.66,0.00017817,2]
[346436141,1734976249530,-302.91851434,0.00017817,2]
[346436142,1734976249540,-4398.29,0.00017817,2]
[346436143,1734976249549,-1662.65,0.00017817,2]
[346436144,1734976249558,-8771.74,0.00017817,2]
[346436145,1734976249568,-1824.12,0.00017817,2]
[346436146,1734976249577,-6281.74,0.00017817,2]
[346436147,1734976249587,-500.0,0.00017817,2]
[346436148,1734976249596,-501.56870435,0.00017817,2]
[346436149,1734976249606,-1833.27,0.00017817,2]
[346436150,1734976249615,-501.70700247,0.00017817,2]
[346436151,1734976249624,-507.52117299,0.00017817,2]
[346436152,1734976249634,-5741.87,0.00017817,2]
[346436153,1734976249643,-500.0,0.00017817,2]
[346436154,1734976249653,-2536.19,0.00017817,2]
[346436155,1734976249663,-896.26,0.00017817,2]
[346436156,1734976249672,-16415.71,0.00017817,2]
[346436157,1734976249681,-500.0,0.0001782,2]
[346436158,1734976249694,-5622.56,0.0001782,2]
[346436159,1734976249704,-9319.41,0.0001782,2]
[346436160,1734976249715,-6009.65,0.0001782,2]
[346436161,1734976249724,-1615.24,0.0001782,2]
[346436162,1734976249734,-5064.54,0.0001782,2]
[346436163,1734976249743,-14077.6,0.0001782,2]
[346436164,1734976249752,-12761.71,0.0001782,2]
[346436165,1734976249762,-11993.86,0.0001782,2]
[346436166,1734976249771,-3367.24,0.0001782,2]
[346436167,1734976249781,-11304.97,0.0001782,2]
[346436168,1734976249791,-3462.96,0.0001782,2]
[346436169,1734976249800,-1364.64,0.0001782,2]
[346436170,1734976249810,-3082.67,0.0001782,2]
[346436171,1734976249819,-2273.82,0.0001782,2]
[346436172,1734976249828,-12836.76,0.0001782,2]
[346436173,1734976249837,-4006.03,0.0001782,2]
[346436174,1734976249846,-4920.03,0.0001782,2]
[346436175,1734976249855,-4792.68,0.0001782,2]
[346436176,1734976249864,-3385.15,0.0001782,2]
[346436177,1734976249873,-5349.99,0.0001782,2]
[346436178,1734976249882,-1315.14,0.00017821,2]
[346436179,1734976249891,-5620.53,0.00017821,2]
[346436180,1734976249900,-10051.76,0.00017821,2]
[346436181,1734976249909,-11019.08,0.00017821,2]
[346436182,1734976249918,-53047.52,0.00017821,2]
[346436183,1734976249928,-3709.46,0.00017821,2]
[346436184,1734976249938,-7080.87,0.00017821,2]
[346436185,1734976249947,-4261.14,0.00017821,2]
[346436186,1734976249957,-2996.88,0.00017821,2]
[346436187,1734976249966,-7372.72,0.00017821,2]
[346436188,1734976249975,-38290.66,0.00017821,2]
[346436189,1734976249984,-2010.08,0.00017821,2]
[346436190,1734976249994,-5608.47,0.00017821,2]
[346436191,1734976250003,-4919.45,0.00017821,2]
[346436192,1734976250013,-3790.52,0.00017821,2]
[346436193,1734976250022,-7084.37,0.00017821,2]
[346436194,1734976250031,-741.4,0.00017821,2]
[346436195,1734976250040,-1730.98,0.00017821,2]
[346436196,1734976250049,-3885.77,0.00017821,2]
[346436197,1734976250059,-4626.44,0.00017821,2]
[346436198,1734976250068,-1427.67,0.00017821,2]
[346436199,1734976250077,-8693.39,0.00017821,2]
[346436200,1734976250087,-500.0,0.00017822,2]
[346436201,1734976250097,-500.0,0.00017822,2]
[346436202,1734976250106,-200.0,0.00017822,2]
[346436203,1734976250115,-500.0,0.00017822,2]
[346436204,1734976250125,-500.0,0.00017822,2]
[346436205,1734976250137,-1008.9,0.00017822,2]
[346436206,1734976250146,-500.0,0.00017822,2]
[346436207,1734976250156,-500.0,0.00017822,2]
[346436208,1734976250165,-1063.83,0.00017822,2]
[346436209,1734976250177,-887.68,0.00017822,2]
[346436210,1734976250188,-500.0,0.00017822,2]
[346436211,1734976250197,-1781.56,0.00017822,2]
[346436212,1734976250211,-234.39024151,0.00017822,2]
[346436213,1734976250221,-500.0,0.00017822,2]
[346436214,1734976250231,-500.0,0.00017822,2]
[346436215,1734976250240,-500.0,0.00017822,2]
[346436216,1734976250250,-500.0,0.00017822,2]
[346436217,1734976250259,-510.61519213,0.00017822,2]
[346436218,1734976250268,-1269.91,0.00017822,2]
[346436219,1734976250278,-500.0,0.00017822,2]
[346436220,1734976250288,-500.0,0.00017822,2]
[346436221,1734976250298,-500.0,0.00017822,2]
[346436222,1734976250308,-500.0,0.00017822,2]
[346436223,1734976250317,-504.88572253,0.00017822,2]
[346436224,1734976250326,-500.0,0.00017822,2]
[346436225,1734976250336,-500.0,0.00017822,2]
[346436226,1734976250346,-500.0,0.00017822,2]
[346436227,1734976250355,-426.44657201,0.00017822,2]
[346436228,1734976250365,-500.0,0.00017822,2]
[346436229,1734976250374,-987.8,0.00017822,2]
[346436230,1734976250385,-500.0,0.00017822,2]
[346436231,1734976250394,-966.35,0.00017822,2]
[346436232,1734976250404,-532.23,0.00017822,2]
[346436233,1734976250413,-500.0,0.00017822,2]
[346436234,1734976250422,-500.0,0.00017822,2]
[346436235,1734976250431,-984.61,0.00017822,2]
[346436236,1734976250445,-933.74,0.00017822,2]
[346436237,1734976250454,-529.91,0.00017822,2]
[346436238,1734976250463,-926.35,0.00017822,2]
[346436239,1734976250472,-500.0,0.00017822,2]
[346436240,1734976250481,-500.0,0.00017822,2]
[346436241,1734976250490,-500.0,0.00017822,2]
[346436242,1734976250499,-1883.69,0.00017822,2]
[346436243,1734976250508,-500.0,0.00017822,2]
[346436244,1734976250518,-500.0,0.00017822,2]
[346436245,1734976250527,-500.0,0.00017822,2]
[346436246,1734976250536,-537.98,0.00017822,2]
[346436247,1734976250545,-1579.82,0.00017822,2]
[346436248,1734976250553,-500.0,0.00017822,2]
[346436249,1734976250563,-500.0,0.00017822,2]
[346436250,1734976250572,-500.0,0.00017822,2]
[346436251,1734976250581,-500.0,0.00017822,2]
[346436252,1734976250591,-500.0,0.00017822,2]
[346436253,1734976250599,-500.0,0.00017822,2]
[346436254,1734976250609,-772.76,0.00017822,2]
[346436255,1734976250618,-500.0,0.00017822,2]
[346436256,1734976250627,-500.0,0.00017822,2]
[346436257,1734976250636,-500.0,0.00017822,2]
[346436258,1734976250646,-640.34,0.00017822,2]
[346436259,1734976250655,-500.0,0.00017822,2]
[346436260,1734976250664,-556.25,0.00017822,2]
[346436261,1734976250673,-1189.84,0.00017822,2]
[346436262,1734976250683,-500.0,0.00017822,2]
[346436263,1734976250694,-500.0,0.00017822,2]
[346436264,1734976250703,-500.0,0.00017822,2]
[346436265,1734976250713,-792.36,0.00017822,2]
[346436266,1734976250723,-500.0,0.00017822,2]
[346436267,1734976250732,-710.13,0.00017822,2]
[346436268,1734976250742,-500.0,0.00017822,2]
[346436269,1734976250751,-500.0,0.00017822,2]
[346436270,1734976250760,-855.9,0.00017822,2]
[346436271,1734976250769,-944.28,0.00017822,2]
[346436272,1734976250779,-500.0,0.00017822,2]
[346436273,1734976250788,-500.0,0.00017822,2]
[346436274,1734976250797,-1343.98,0.00017822,2]
[346436275,1734976250806,-500.0,0.00017822,2]
[346436276,1734976250815,-536.74,0.00017822,2]
[346436277,1734976250824,-500.0,0.00017822,2]
[346436278,1734976250834,-500.0,0.00017822,2]
[346436279,1734976250843,-853.29,0.00017822,2]
[346436280,1734976250852,-522.9,0.00017822,2]
[346436281,1734976250861,-1947.2,0.00017822,2]
[346436282,1734976250870,-501.51,0.00017822,2]
[346436283,1734976250879,-500.0,0.00017822,2]
[346436284,1734976250888,-500.0,0.00017822,2]
[346436285,1734976250898,-500.0,0.00017822,2]
[346436286,1734976250907,-1191.25,0.00017822,2]
[346436287,1734976250916,-500.0,0.00017822,2]
[346436288,1734976250925,-624.22,0.00017822,2]
[346436289,1734976250934,-546.01,0.00017822,2]
[346436290,1734976250944,-500.0,0.00017822,2]
[346436291,1734976250953,-500.0,0.00017822,2]
[346436292,1734976250962,-500.0,0.00017822,2]
[346436293,1734976250971,-585.09340595,0.00017822,2]
[346436294,1734976250980,-1210.03,0.00017822,2]
[346436295,1734976250990,-500.0,0.00017822,2]
[346436296,1734976250999,-500.0,0.00017822,2]
[346436297,1734976251008,-500.0,0.00017822,2]
[346436298,1734976251018,-573.82642136,0.00017822,2]
[346436299,1734976251027,-697.21,0.00017822,2]
[346436300,1734976251036,-500.0,0.00017822,2]
[346436301,1734976251046,-1228.86,0.00017822,2]
[346436302,1734976251055,-500.0,0.00017822,2]
[346436303,1734976251064,-500.0,0.00017822,2]
[346436304,1734976251073,-500.0,0.00017822,2]
[346436305,1734976251083,-500.0,0.00017822,2]
[346436306,1734976251092,-500.0,0.00017822,2]
[346436307,1734976251102,-500.0,0.00017822,2]
[346436308,1734976251112,-500.0,0.00017822,2]
[346436309,1734976251123,-500.0,0.00017822,2]
[346436310,1734976251134,-500.0,0.00017822,2]
[346436311,1734976251145,-500.0,0.00017822,2]
[346436312,1734976251155,-500.0,0.00017822,2]
[346436313,1734976251166,-531.36,0.00017822,2]
[346436314,1734976251175,-500.0,0.00017822,2]
[346436315,1734976251186,-500.0,0.00017822,2]
[346436316,1734976251196,-1945.63,0.00017822,2]
[346436317,1734976251207,-500.0,0.00017822,2]
[346436318,1734976251217,-500.0,0.00017822,2]
[346436319,1734976251227,-3074.23,0.00017822,2]
[346436320,1734976251237,-897.16,0.00017822,2]
[346436321,1734976251246,-898.16,0.00017822,2]
[346436322,1734976251256,-500.0,0.00017822,2]
[346436323,1734976251265,-2239.78,0.00017822,2]
[346436324,1734976251275,-1483.86,0.00017822,2]
[346436325,1734976251284,-500.0,0.00017822,2]
[346436326,1734976251294,-3348.04,0.00017822,2]
[346436327,1734976251305,-500.0,0.00017822,2]
[346436328,1734976251315,-1265.08,0.00017822,2]
[346436329,1734976251324,-1050.43,0.00017822,2]
[346436330,1734976251334,-500.0,0.00017822,2]
[346436331,1734976251344,-500.0,0.00017822,2]
[346436332,1734976251354,-720.26,0.00017822,2]
[346436333,1734976251364,-700.76,0.00017822,2]
[346436334,1734976251374,-500.0,0.00017822,2]
[346436335,1734976251383,-500.0,0.00017822,2]
[346436336,1734976251393,-970.41,0.00017822,2]
[346436337,1734976251403,-907.2,0.00017822,2]
[346436338,1734976251413,-613.28,0.00017822,2]
[346436339,1734976251424,-500.0,0.00017822,2]
[346436340,1734976251433,-2961.33,0.00017822,2]
[346436341,1734976251445,-500.0,0.00017822,2]
[346436342,1734976251455,-500.0,0.00017822,2]
[346436343,1734976251465,-500.0,0.00017822,2]
[346436344,1734976251475,-500.0,0.00017822,2]
[346436345,1734976251485,-502.27398762,0.00017822,2]
[346436346,1734976251495,-500.0,0.00017822,2]
[346436347,1734976251505,-2357.48,0.00017822,2]
[346436348,1734976251515,-514.3,0.00017822,2]
[346436349,1734976251525,-500.0,0.00017822,2]
[346436350,1734976251534,-500.0,0.00017822,2]
[346436351,1734976251544,-589.47,0.00017822,2]
[346436352,1734976251554,-500.0,0.00017822,2]
[346436353,1734976251564,-500.0,0.00017822,2]
[346436354,1734976251574,-500.0,0.00017822,2]
[346436355,1734976251583,-500.0,0.00017822,2]
[346436356,1734976251593,-179.41,0.00017822,2]
[346436357,1734976251603,-500.0,0.00017822,2]
[346436358,1734976251612,-500.0,0.00017822,2]
[346436359,1734976251622,-500.0,0.00017822,2]
[346436360,1734976251632,-3097.46,0.00017822,2]
[346436361,1734976251641,-612.56,0.00017822,2]
[346436362,1734976251651,-3492.33,0.00017822,2]
[346436363,1734976251660,-500.0,0.00017822,2]
[346436364,1734976251670,-633.42,0.00017822,2]
[346436365,1734976251680,-666.4,0.00017822,2]
[346436366,1734976251690,-500.0,0.00017822,2]
[346436367,1734976251700,-731.94,0.00017822,2]
[346436368,1734976251710,-500.0,0.00017822,2]
[346436369,1734976251719,-3000.86,0.00017822,2]
[346436370,1734976251729,-568.85,0.00017822,2]
[346436371,1734976251739,-464.77287953,0.00017822,2]
[346436372,1734976251748,-2136.82,0.00017822,2]
[346436373,1734976251758,-500.0,0.00017822,2]
[346436374,1734976251767,-500.0,0.00017822,2]
[346436375,1734976251777,-500.0,0.00017822,2]
[346436376,1734976251786,-646.44,0.00017822,2]
[346436377,1734976251796,-193.98700376,0.00017822,2]
[346436378,1734976251805,-917.54,0.00017822,2]
[346436379,1734976251814,-500.0,0.00017822,2]
[346436380,1734976251824,-619.4,0.00017822,2]
[346436381,1734976251834,-1294.29,0.00017822,2]
[346436382,1734976251843,-500.0,0.00017822,2]
[346436383,1734976251853,-906.69,0.00017822,2]
[346436384,1734976251862,-3350.27,0.00017822,2]
[346436385,1734976251871,-500.0,0.00017822,2]
[346436386,1734976251880,-1790.88,0.00017822,2]
[346436387,1734976251889,-500.0,0.00017822,2]
[346436388,1734976251898,-915.29,0.00017822,2]
[346436389,1734976251907,-500.0,0.00017822,2]
[346436390,1734976251917,-500.0,0.00017822,2]
[346436391,1734976251926,-506.65987761,0.00017822,2]
[346436392,1734976251936,-764.87,0.00017822,2]
[346436393,1734976251946,-2774.72,0.00017822,2]
[346436394,1734976251955,-872.81,0.00017822,2]
[346436395,1734976251965,-500.0,0.00017822,2]
[346436396,1734976251974,-500.0,0.00017822,2]
[346436397,1734976251984,-500.0,0.00017822,2]
[346436398,1734976251993,-500.0,0.00017822,2]
[346436399,1734976252003,-500.0,0.00017822,2]
[346436400,1734976252012,-500.0,0.00017822,2]
[346436401,1734976252021,-2032.43,0.00017822,2]
[346436402,1734976252030,-577.89,0.00017822,2]
[346436403,1734976252040,-500.0,0.00017822,2]
[346436404,1734976252050,-500.0,0.00017822,2]
[346436405,1734976252059,-1275.46,0.00017822,2]
[346436406,1734976252069,-656.21,0.00017822,2]
[346436407,1734976252078,-500.0,0.00017822,2]
[346436408,1734976252088,-702.39,0.00017822,2]
[346436409,1734976252098,-1904.3,0.00017822,2]
[346436410,1734976252107,-500.0,0.00017822,2]
[346436411,1734976252118,-500.0,0.00017822,2]
[346436412,1734976252132,-210.58071379,0.00017822,2]
[346436413,1734976252142,-500.0,0.00017822,2]
[346436414,1734976252152,-2429.79,0.00017822,2]